[Event "Titled Tuesday Blitz November 07 Early 2023"]
[White "Harriott, Tyrell"]
[Black "Lukovic, Vladimir"]
[WhiteFideId "2086484"]
[BlackFideId "942952"]
[WhiteElo "2333"]
[BlackElo "2692"]
[Result "0-1"]
[Round "2"]
[TimeControl "180+1"]
[Date "2023.11.07"]
[WhiteClock "0:00:09"]
[BlackClock "0:00:10"]
[Board "103"]

1. d4 {[%clk 0:02:56]}  Nf6 {[%clk 0:02:56]} 2. e3 {[%clk 0:02:56]}  g6 {[%clk 0:02:52]} 3. Bd3 {[%clk 0:02:57]}  Bg7 {[%clk 0:02:53]} 4. f4 {[%clk 0:02:58]}  O-O {[%clk 0:02:53]} 5. Nf3 {[%clk 0:02:59]}  b6 {[%clk 0:02:51]} 6. O-O {[%clk 0:02:59]}  Bb7 {[%clk 0:02:51]} 7. f5 {[%clk 0:02:59]}  e6 {[%clk 0:02:48]} 8. fxg6 {[%clk 0:02:59]}  fxg6 {[%clk 0:02:48]} 9. Nbd2 {[%clk 0:02:59]}  Nc6 {[%clk 0:02:43]} 10. c3 {[%clk 0:02:59]}  e5 {[%clk 0:02:40]} 11. Qe1 {[%clk 0:02:56]}  Qe7 {[%clk 0:02:38]} 12. Qh4 {[%clk 0:02:53]}  Rae8 {[%clk 0:02:34]} 13. Bc4+ {[%clk 0:02:50]}  d5 {[%clk 0:02:32]} 14. Bb3 {[%clk 0:02:49]}  e4 {[%clk 0:02:30]} 15. Ng5 {[%clk 0:02:22]}  Na5 {[%clk 0:02:30]} 16. Ndxe4 {[%clk 0:01:46]}  Nxb3 {[%clk 0:02:18]} 17. Nxf6+ {[%clk 0:01:43]}  Bxf6 {[%clk 0:02:17]} 18. Rxf6 {[%clk 0:01:42]}  Rxf6 {[%clk 0:02:16]} 19. axb3 {[%clk 0:01:41]}  a5 {[%clk 0:02:05]} 20. e4 {[%clk 0:01:38]}  dxe4 {[%clk 0:02:00]} 21. Be3 {[%clk 0:01:37]}  Ref8 {[%clk 0:01:58]} 22. c4 {[%clk 0:01:34]}  Rf5 {[%clk 0:01:45]} 23. d5 {[%clk 0:01:19]}  Bc8 {[%clk 0:01:39]} 24. g4 {[%clk 0:01:12]}  R5f6 {[%clk 0:01:16]} 25. Bd4 {[%clk 0:01:06]}  Rf4 {[%clk 0:01:09]} 26. h3 {[%clk 0:01:02]}  e3 {[%clk 0:01:09]} 27. Be5 {[%clk 0:00:50]}  R4f7 {[%clk 0:00:59]} 28. Bg3 {[%clk 0:00:31]}  Rf2 {[%clk 0:00:34]} 29. Bxf2 {[%clk 0:00:19]}  exf2+ {[%clk 0:00:34]} 30. Kf1 {[%clk 0:00:20]}  Qg7 {[%clk 0:00:21]} 31. Rd1 {[%clk 0:00:19]}  h6 {[%clk 0:00:20]} 32. Ne4 {[%clk 0:00:18]}  g5 {[%clk 0:00:18]} 33. Qg3 {[%clk 0:00:18]}  Rf4 {[%clk 0:00:15]} 34. Nxf2 {[%clk 0:00:16]}  Qxb2 {[%clk 0:00:14]} 35. Re1 {[%clk 0:00:15]}  Kf7 {[%clk 0:00:12]} 36. Re3 {[%clk 0:00:14]}  Bd7 {[%clk 0:00:11]} 37. Rf3 {[%clk 0:00:14]}  Qf6 {[%clk 0:00:11]} 38. Kg2 {[%clk 0:00:13]}  a4 {[%clk 0:00:10]} 39. bxa4 {[%clk 0:00:12]}  Bxa4 {[%clk 0:00:10]} 40. Nd3 {[%clk 0:00:12]}  Rxf3 {[%clk 0:00:10]} 41. Qxf3 {[%clk 0:00:13]}  Qxf3+ {[%clk 0:00:10]} 42. Kxf3 {[%clk 0:00:13]}  Kf6 {[%clk 0:00:10]} 43. Ke4 {[%clk 0:00:14]}  Bd1 {[%clk 0:00:10]} 44. Kd4 {[%clk 0:00:14]}  Bf3 {[%clk 0:00:10]} 45. Ne5 {[%clk 0:00:14]}  Bg2 {[%clk 0:00:09]} 46. Nd7+ {[%clk 0:00:10]}  Ke7 {[%clk 0:00:09]} 47. Ne5 {[%clk 0:00:10]}  Bxh3 {[%clk 0:00:09]} 48. Ng6+ {[%clk 0:00:10]}  Kf6 {[%clk 0:00:09]} 49. Ne5 {[%clk 0:00:11]}  Bg2 {[%clk 0:00:08]} 50. Nd7+ {[%clk 0:00:07]}  Ke7 {[%clk 0:00:08]} 51. Ne5 {[%clk 0:00:08]}  Bf1 {[%clk 0:00:09]} 52. Kc3 {[%clk 0:00:07]}  Kf6 {[%clk 0:00:09]} 53. Kd4 {[%clk 0:00:08]}  Be2 {[%clk 0:00:09]} 54. Ke4 {[%clk 0:00:07]}  h5 {[%clk 0:00:09]} 55. gxh5 {[%clk 0:00:07]}  Bxh5 {[%clk 0:00:10]} 56. Kd4 {[%clk 0:00:06]}  Bg6 {[%clk 0:00:09]} 57. Nf3 {[%clk 0:00:06]}  Bf5 {[%clk 0:00:09]} 58. Ne5 {[%clk 0:00:05]}  g4 {[%clk 0:00:09]} 59. Nc6 {[%clk 0:00:04]}  Kg5 {[%clk 0:00:09]} 60. Ke3 {[%clk 0:00:04]}  Kh4 {[%clk 0:00:09]} 61. Nd4 {[%clk 0:00:05]}  Bd7 {[%clk 0:00:09]} 62. Kf4 {[%clk 0:00:05]}  Kh3 {[%clk 0:00:07]} 63. Ke3 {[%clk 0:00:04]}  g3 {[%clk 0:00:08]} 64. Ne2 {[%clk 0:00:04]}  g2 {[%clk 0:00:07]} 65. Kf2 {[%clk 0:00:04]}  Kh2 {[%clk 0:00:08]} 66. Ng1 {[%clk 0:00:01]}  Bg4 {[%clk 0:00:08]} 67. Ne2 {[%clk 0:00:01]}  Bxe2 {[%clk 0:00:08]} 68. Kxe2 {[%clk 0:00:02]}  g1=Q {[%clk 0:00:08]} 69. Kd3 {[%clk 0:00:02]}  Qc5 {[%clk 0:00:09]} 70. Kc3 {[%clk 0:00:03]}  b5 {[%clk 0:00:09]} 71. Kd3 {[%clk 0:00:04]}  Qxc4+ {[%clk 0:00:10]} 72. Kd2 {[%clk 0:00:04]}  Qxd5+ {[%clk 0:00:10]} 73. Kc2 {[%clk 0:00:05]}  Qf3 {[%clk 0:00:10]} 74. Kb2 {[%clk 0:00:06]}  c5 {[%clk 0:00:10]} 75. Kc2 {[%clk 0:00:06]}  b4 {[%clk 0:00:11]} 76. Kb2 {[%clk 0:00:07]}  c4 {[%clk 0:00:12]} 77. Kc2 {[%clk 0:00:08]}  Qf2+ {[%clk 0:00:13]} 78. Kd1 {[%clk 0:00:08]}  b3 {[%clk 0:00:13]} 79. Kc1 {[%clk 0:00:08]}  c3 {[%clk 0:00:13]} 80. Kd1 {[%clk 0:00:09]}  Qd2# {[%clk 0:00:10]} 0-1


[Site "https://www.chess.com"]

[Event "Titled Tuesday Blitz November 07 Early 2023"]
[White "Tatarinov, Dmitry"]
[Black "SlippperyWhenWet"]
[WhiteFideId "24160067"]
[WhiteElo "2691"]
[BlackElo "2331"]
[Result "1-0"]
[Round "2"]
[TimeControl "180+1"]
[Date "2023.11.07"]
[WhiteClock "0:01:36"]
[BlackClock "0:00:50"]
[Board "104"]

1. e4 {[%clk 0:02:54]}  c5 {[%clk 0:02:59]} 2. Nf3 {[%clk 0:02:52]}  e6 {[%clk 0:02:56]} 3. d4 {[%clk 0:02:52]}  cxd4 {[%clk 0:02:57]} 4. Nxd4 {[%clk 0:02:52]}  a6 {[%clk 0:02:57]} 5. Nc3 {[%clk 0:02:50]}  d6 {[%clk 0:02:57]} 6. Be2 {[%clk 0:02:48]}  Be7 {[%clk 0:02:57]} 7. O-O {[%clk 0:02:49]}  Nf6 {[%clk 0:02:57]} 8. Kh1 {[%clk 0:02:49]}  Qc7 {[%clk 0:02:57]} 9. f4 {[%clk 0:02:49]}  Nbd7 {[%clk 0:02:57]} 10. f5 {[%clk 0:02:49]}  Ne5 {[%clk 0:02:52]} 11. Qe1 {[%clk 0:02:38]}  b5 {[%clk 0:02:47]} 12. a3 {[%clk 0:02:38]}  Bb7 {[%clk 0:02:46]} 13. Qg3 {[%clk 0:02:37]}  Nxe4 {[%clk 0:02:27]} 14. Nxe4 {[%clk 0:02:37]}  Bxe4 {[%clk 0:02:27]} 15. fxe6 {[%clk 0:02:36]}  O-O-O {[%clk 0:02:15]} 16. exf7 {[%clk 0:02:35]}  Bf6 {[%clk 0:02:12]} 17. Bg5 {[%clk 0:02:20]}  h5 {[%clk 0:02:07]} 18. Bxf6 {[%clk 0:02:18]}  gxf6 {[%clk 0:02:07]} 19. Rxf6 {[%clk 0:02:18]}  h4 {[%clk 0:02:04]} 20. Qh3+ {[%clk 0:02:18]}  Kb8 {[%clk 0:02:03]} 21. Ne6 {[%clk 0:02:12]}  Qe7 {[%clk 0:02:00]} 22. Raf1 {[%clk 0:02:09]}  Rdf8 {[%clk 0:01:43]} 23. Nxf8 {[%clk 0:02:09]}  Rxf8 {[%clk 0:01:44]} 24. Qxh4 {[%clk 0:02:07]}  Rxf7 {[%clk 0:01:40]} 25. Qh8+ {[%clk 0:01:58]}  Kc7 {[%clk 0:01:35]} 26. Rxf7 {[%clk 0:01:58]}  Nxf7 {[%clk 0:01:35]} 27. Qf6 {[%clk 0:01:57]}  Bxg2+ {[%clk 0:01:31]} 28. Kxg2 {[%clk 0:01:57]}  Qxe2+ {[%clk 0:01:32]} 29. Qf2 {[%clk 0:01:50]}  Qg4+ {[%clk 0:01:24]} 30. Qg3 {[%clk 0:01:51]}  Qe4+ {[%clk 0:01:22]} 31. Qf3 {[%clk 0:01:51]}  Qxc2+ {[%clk 0:01:22]} 32. Rf2 {[%clk 0:01:51]}  Qg6+ {[%clk 0:01:22]} 33. Kh1 {[%clk 0:01:44]}  Ne5 {[%clk 0:01:19]} 34. Qf5 {[%clk 0:01:43]}  Qg8 {[%clk 0:01:12]} 35. Rc2+ {[%clk 0:01:42]}  Kb6 {[%clk 0:01:07]} 36. Qf2+ {[%clk 0:01:42]}  Kb7 {[%clk 0:01:03]} 37. Qg2+ {[%clk 0:01:42]}  Qxg2+ {[%clk 0:01:00]} 38. Rxg2 {[%clk 0:01:43]}  Kc6 {[%clk 0:00:58]} 39. h4 {[%clk 0:01:41]}  d5 {[%clk 0:00:55]} 40. h5 {[%clk 0:01:41]}  Nf7 {[%clk 0:00:55]} 41. Rg7 {[%clk 0:01:38]}  Nh8 {[%clk 0:00:54]} 42. h6 {[%clk 0:01:37]}  d4 {[%clk 0:00:54]} 43. h7 {[%clk 0:01:38]}  d3 {[%clk 0:00:54]} 44. Rg8 {[%clk 0:01:38]}  d2 {[%clk 0:00:53]} 45. Rd8 {[%clk 0:01:38]}  Ng6 {[%clk 0:00:49]} 46. Rxd2 {[%clk 0:01:37]}  Kb6 {[%clk 0:00:50]} 47. Rg2 {[%clk 0:01:38]}  Nh8 {[%clk 0:00:50]} 48. Rg8 {[%clk 0:01:38]}  Ka5 {[%clk 0:00:50]} 49. Rxh8 {[%clk 0:01:38]}  Ka4 {[%clk 0:00:50]} 50. Rf8 {[%clk 0:01:37]}  a5 {[%clk 0:00:51]} 51. h8=Q {[%clk 0:01:37]}  b4 {[%clk 0:00:51]} 52. Qd4 {[%clk 0:01:36]}  Kb3 {[%clk 0:00:50]} 53. Rf3+ {[%clk 0:01:37]}  Ka4 {[%clk 0:00:50]} 54. axb4 {[%clk 0:01:36]}  axb4 {[%clk 0:00:50]} 55. b3+ {[%clk 0:01:36]}  Ka3 {[%clk 0:00:50]} 56. Qa1# {[%clk 0:01:36]} 1-0


[Site "https://www.chess.com"]

[Event "Titled Tuesday Blitz November 07 Early 2023"]
[White "Malek, Jan"]
[Black "Goh, Zi Han"]
[WhiteFideId "21864080"]
[BlackFideId "5819156"]
[WhiteElo "2683"]
[BlackElo "2318"]
[Result "1-0"]
[Round "2"]
[TimeControl "180+1"]
[Date "2023.11.07"]
[WhiteClock "0:00:05"]
[BlackClock "0:00:00"]
[Board "106"]

1. c4 {[%clk 0:03:00]}  e5 {[%clk 0:02:58]} 2. Nc3 {[%clk 0:02:59]}  Nc6 {[%clk 0:02:58]} 3. e3 {[%clk 0:02:56]}  Nf6 {[%clk 0:02:49]} 4. Nf3 {[%clk 0:02:52]}  Be7 {[%clk 0:02:43]} 5. d4 {[%clk 0:02:47]}  exd4 {[%clk 0:02:42]} 6. exd4 {[%clk 0:02:45]}  d5 {[%clk 0:02:42]} 7. cxd5 {[%clk 0:02:45]}  Nxd5 {[%clk 0:02:42]} 8. Bc4 {[%clk 0:02:45]}  Be6 {[%clk 0:02:31]} 9. Qe2 {[%clk 0:02:33]}  O-O {[%clk 0:02:19]} 10. O-O {[%clk 0:02:27]}  Re8 {[%clk 0:02:18]} 11. Be3 {[%clk 0:02:25]}  Bf6 {[%clk 0:02:14]} 12. Rad1 {[%clk 0:01:53]}  Na5 {[%clk 0:02:02]} 13. Bd3 {[%clk 0:01:48]}  Bg4 {[%clk 0:01:52]} 14. Ne4 {[%clk 0:01:31]}  Bf5 {[%clk 0:01:35]} 15. Nc5 {[%clk 0:01:02]}  Nf4 {[%clk 0:01:30]} 16. Qc2 {[%clk 0:00:54]}  Nxd3 {[%clk 0:01:27]} 17. Nxd3 {[%clk 0:00:55]}  Nc6 {[%clk 0:01:07]} 18. Qc5 {[%clk 0:00:50]}  Be4 {[%clk 0:01:02]} 19. Nfe5 {[%clk 0:00:41]}  Qd5 {[%clk 0:01:00]} 20. Qxd5 {[%clk 0:00:10]}  Bxd5 {[%clk 0:01:01]} 21. Nf4 {[%clk 0:00:11]}  Bxa2 {[%clk 0:00:54]} 22. Ra1 {[%clk 0:00:10]}  Bb3 {[%clk 0:00:46]} 23. Ra3 {[%clk 0:00:09]}  Bc2 {[%clk 0:00:43]} 24. Rc1 {[%clk 0:00:07]}  Be4 {[%clk 0:00:43]} 25. Nd7 {[%clk 0:00:06]}  Bxd4 {[%clk 0:00:36]} 26. h3 {[%clk 0:00:03]}  Rad8 {[%clk 0:00:32]} 27. Nc5 {[%clk 0:00:02]}  Bxe3 {[%clk 0:00:27]} 28. Rxe3 {[%clk 0:00:01]}  Bf5 {[%clk 0:00:19]} 29. Nxb7 {[%clk 0:00:01]}  Rxe3 {[%clk 0:00:14]} 30. Nxd8 {[%clk 0:00:01]}  Re4 {[%clk 0:00:11]} 31. Nxc6 {[%clk 0:00:02]}  Rxf4 {[%clk 0:00:10]} 32. Ne7+ {[%clk 0:00:02]}  Kf8 {[%clk 0:00:11]} 33. Rxc7 {[%clk 0:00:03]}  Be6 {[%clk 0:00:07]} 34. Nc6 {[%clk 0:00:03]}  Rc4 {[%clk 0:00:06]} 35. b3 {[%clk 0:00:02]}  Rc1+ {[%clk 0:00:05]} 36. Kh2 {[%clk 0:00:02]}  g6 {[%clk 0:00:05]} 37. b4 {[%clk 0:00:02]}  a6 {[%clk 0:00:04]} 38. Kg3 {[%clk 0:00:02]}  Bd5 {[%clk 0:00:04]} 39. Rc8+ {[%clk 0:00:02]}  Kg7 {[%clk 0:00:05]} 40. Ne7 {[%clk 0:00:03]}  Rxc8 {[%clk 0:00:05]} 41. Nxc8 {[%clk 0:00:04]}  Kf6 {[%clk 0:00:06]} 42. f3 {[%clk 0:00:04]}  Bc4 {[%clk 0:00:05]} 43. Kf4 {[%clk 0:00:04]}  Ke6 {[%clk 0:00:05]} 44. Nb6 {[%clk 0:00:04]}  Bb5 {[%clk 0:00:06]} 45. Ke4 {[%clk 0:00:05]}  f6 {[%clk 0:00:06]} 46. Kd4 {[%clk 0:00:05]}  Kd6 {[%clk 0:00:06]} 47. Nd5 {[%clk 0:00:05]}  f5 {[%clk 0:00:04]} 48. g3 {[%clk 0:00:06]}  Bf1 {[%clk 0:00:04]} 49. h4 {[%clk 0:00:06]}  Be2 {[%clk 0:00:04]} 50. Nf6 {[%clk 0:00:06]}  Bxf3 {[%clk 0:00:04]} 51. Nxh7 {[%clk 0:00:06]}  Be2 {[%clk 0:00:04]} 52. Nf8 {[%clk 0:00:06]}  Kc6 {[%clk 0:00:04]} 53. Nxg6 {[%clk 0:00:05]}  Kb5 {[%clk 0:00:05]} 54. Kc3 {[%clk 0:00:05]}  Bh5 {[%clk 0:00:02]} 55. Nf4 {[%clk 0:00:05]}  Bf7 {[%clk 0:00:02]} 56. h5 {[%clk 0:00:03]}  Kc6 {[%clk 0:00:02]} 57. h6 {[%clk 0:00:04]}  Bg8 {[%clk 0:00:02]} 58. Nh3 {[%clk 0:00:04]}  Kd5 {[%clk 0:00:03]} 59. Ng5 {[%clk 0:00:05]}  f4 {[%clk 0:00:02]} 60. gxf4 {[%clk 0:00:04]}  Kd6 {[%clk 0:00:00]} 61. h7 {[%clk 0:00:05]} 1-0


[Site "https://www.chess.com"]

[Event "Titled Tuesday Blitz November 07 Early 2023"]
[White "Bogaudinov, Rushan"]
[Black "Ovetchkin, Roman"]
[WhiteFideId "4129288"]
[BlackFideId "4119991"]
[WhiteElo "2309"]
[BlackElo "2682"]
[Result "0-1"]
[Round "2"]
[TimeControl "180+1"]
[Date "2023.11.07"]
[WhiteClock "0:00:01"]
[BlackClock "0:00:46"]
[Board "107"]

1. e4 {[%clk 0:02:59]}  c6 {[%clk 0:02:59]} 2. d4 {[%clk 0:02:58]}  d5 {[%clk 0:03:00]} 3. e5 {[%clk 0:02:59]}  Bf5 {[%clk 0:02:59]} 4. c4 {[%clk 0:02:59]}  e6 {[%clk 0:03:00]} 5. Nc3 {[%clk 0:02:59]}  Ne7 {[%clk 0:02:59]} 6. a3 {[%clk 0:02:59]}  dxc4 {[%clk 0:02:59]} 7. Bxc4 {[%clk 0:02:58]}  Nd7 {[%clk 0:02:59]} 8. Nge2 {[%clk 0:02:58]}  Nb6 {[%clk 0:02:59]} 9. Bb3 {[%clk 0:02:58]}  Ned5 {[%clk 0:02:59]} 10. O-O {[%clk 0:02:54]}  Be7 {[%clk 0:02:58]} 11. Ng3 {[%clk 0:02:53]}  Bg6 {[%clk 0:02:58]} 12. f4 {[%clk 0:02:54]}  Qd7 {[%clk 0:02:49]} 13. Qf3 {[%clk 0:02:53]}  O-O {[%clk 0:02:42]} 14. f5 {[%clk 0:02:43]}  exf5 {[%clk 0:02:41]} 15. Nxf5 {[%clk 0:02:44]}  Bxf5 {[%clk 0:02:40]} 16. Qxf5 {[%clk 0:02:44]}  Qxf5 {[%clk 0:02:40]} 17. Rxf5 {[%clk 0:02:44]}  Rad8 {[%clk 0:02:40]} 18. a4 {[%clk 0:02:23]}  a5 {[%clk 0:02:35]} 19. Bd2 {[%clk 0:02:10]}  Nc7 {[%clk 0:02:25]} 20. Be3 {[%clk 0:02:06]}  Nbd5 {[%clk 0:02:23]} 21. Nxd5 {[%clk 0:02:04]}  Nxd5 {[%clk 0:02:22]} 22. Bf2 {[%clk 0:01:51]}  g6 {[%clk 0:02:19]} 23. Rf3 {[%clk 0:01:49]}  Kg7 {[%clk 0:02:19]} 24. Be1 {[%clk 0:01:28]}  Bb4 {[%clk 0:01:45]} 25. Bc3 {[%clk 0:01:16]}  f5 {[%clk 0:01:37]} 26. h4 {[%clk 0:01:08]}  h5 {[%clk 0:01:32]} 27. Rc1 {[%clk 0:01:00]}  Rd7 {[%clk 0:01:28]} 28. Kf2 {[%clk 0:00:42]}  Rfd8 {[%clk 0:01:27]} 29. Ke2 {[%clk 0:00:27]}  Kf8 {[%clk 0:01:23]} 30. Kd3 {[%clk 0:00:24]}  Ke7 {[%clk 0:01:22]} 31. Bxd5 {[%clk 0:00:22]}  Rxd5 {[%clk 0:01:21]} 32. Kc4 {[%clk 0:00:21]}  Ke6 {[%clk 0:01:16]} 33. Rg3 {[%clk 0:00:20]}  Kf7 {[%clk 0:01:12]} 34. Re1 {[%clk 0:00:17]}  Be7 {[%clk 0:01:11]} 35. Rh3 {[%clk 0:00:11]}  b5+ {[%clk 0:01:07]} 36. axb5 {[%clk 0:00:11]}  cxb5+ {[%clk 0:01:07]} 37. Kb3 {[%clk 0:00:09]}  a4+ {[%clk 0:01:06]} 38. Kc2 {[%clk 0:00:08]}  b4 {[%clk 0:01:06]} 39. Bd2 {[%clk 0:00:09]}  Rxd4 {[%clk 0:01:06]} 40. e6+ {[%clk 0:00:06]}  Kg7 {[%clk 0:01:06]} 41. Be3 {[%clk 0:00:04]}  Rc4+ {[%clk 0:00:56]} 42. Kb1 {[%clk 0:00:04]}  Re4 {[%clk 0:00:53]} 43. Rc1 {[%clk 0:00:03]}  Rxe6 {[%clk 0:00:50]} 44. Rc7 {[%clk 0:00:01]}  b3 {[%clk 0:00:48]} 45. Kc1 {[%clk 0:00:01]}  Kf8 {[%clk 0:00:47]} 46. Bh6+ {[%clk 0:00:01]}  Ke8 {[%clk 0:00:47]} 47. Bg5 {[%clk 0:00:01]}  Re1# {[%clk 0:00:46]} 0-1


[Site "https://www.chess.com"]

[Event "Titled Tuesday Blitz November 07 Early 2023"]
[White "Vifleemskaia, Svetlana"]
[Black "Yen, William"]
[WhiteFideId "4129490"]
[BlackFideId "30932025"]
[WhiteElo "2285"]
[BlackElo "2679"]
[Result "1/2-1/2"]
[Round "2"]
[TimeControl "180+1"]
[Date "2023.11.07"]
[WhiteClock "0:00:36"]
[BlackClock "0:00:21"]
[Board "109"]

1. d4 {[%clk 0:03:00]}  Nf6 {[%clk 0:02:44]} 2. c4 {[%clk 0:03:00]}  g6 {[%clk 0:02:45]} 3. Nc3 {[%clk 0:03:00]}  d5 {[%clk 0:02:45]} 4. cxd5 {[%clk 0:03:00]}  Nxd5 {[%clk 0:02:45]} 5. Bd2 {[%clk 0:03:01]}  Bg7 {[%clk 0:02:38]} 6. e4 {[%clk 0:03:00]}  Nb6 {[%clk 0:02:36]} 7. Be3 {[%clk 0:03:00]}  O-O {[%clk 0:02:35]} 8. Nf3 {[%clk 0:02:55]}  Bg4 {[%clk 0:02:32]} 9. Be2 {[%clk 0:02:54]}  Nc6 {[%clk 0:02:30]} 10. d5 {[%clk 0:02:52]}  Na5 {[%clk 0:02:29]} 11. Bd4 {[%clk 0:02:49]}  Bxf3 {[%clk 0:02:27]} 12. Bxf3 {[%clk 0:02:47]}  e6 {[%clk 0:02:22]} 13. Bxg7 {[%clk 0:02:45]}  Kxg7 {[%clk 0:02:23]} 14. O-O {[%clk 0:02:45]}  Nac4 {[%clk 0:02:18]} 15. b3 {[%clk 0:02:39]}  Ne5 {[%clk 0:02:10]} 16. Qd4 {[%clk 0:02:29]}  Qf6 {[%clk 0:02:08]} 17. Qe3 {[%clk 0:02:20]}  Nxf3+ {[%clk 0:02:05]} 18. Qxf3 {[%clk 0:02:18]}  Qxf3 {[%clk 0:02:04]} 19. gxf3 {[%clk 0:02:19]}  exd5 {[%clk 0:02:03]} 20. Nxd5 {[%clk 0:02:18]}  Nxd5 {[%clk 0:01:59]} 21. exd5 {[%clk 0:02:19]}  Rfd8 {[%clk 0:02:00]} 22. Rac1 {[%clk 0:02:18]}  Rd7 {[%clk 0:01:58]} 23. Rfe1 {[%clk 0:02:16]}  Rc8 {[%clk 0:01:55]} 24. Red1 {[%clk 0:02:02]}  Kf6 {[%clk 0:01:50]} 25. f4 {[%clk 0:02:02]}  Rcd8 {[%clk 0:01:46]} 26. Kg2 {[%clk 0:02:01]}  c6 {[%clk 0:01:43]} 27. dxc6 {[%clk 0:01:38]}  Rxd1 {[%clk 0:01:44]} 28. c7 {[%clk 0:01:38]}  Rc8 {[%clk 0:01:43]} 29. Rxd1 {[%clk 0:01:37]}  Rxc7 {[%clk 0:01:44]} 30. Rd5 {[%clk 0:01:32]}  b6 {[%clk 0:01:03]} 31. a4 {[%clk 0:01:27]}  Rc5 {[%clk 0:00:59]} 32. Rd7 {[%clk 0:01:23]}  Rc3 {[%clk 0:00:58]} 33. Rxa7 {[%clk 0:01:14]}  Rxb3 {[%clk 0:00:58]} 34. a5 {[%clk 0:01:14]}  bxa5 {[%clk 0:00:44]} 35. Rxa5 {[%clk 0:01:13]}  h5 {[%clk 0:00:42]} 36. h3 {[%clk 0:00:58]}  h4 {[%clk 0:00:40]} 37. Ra8 {[%clk 0:00:49]}  Kf5 {[%clk 0:00:38]} 38. Rh8 {[%clk 0:00:47]}  Rb4 {[%clk 0:00:34]} 39. Rxh4 {[%clk 0:00:45]}  Rxf4 {[%clk 0:00:34]} 40. Rh8 {[%clk 0:00:43]}  g5 {[%clk 0:00:32]} 41. Rg8 {[%clk 0:00:40]}  f6 {[%clk 0:00:30]} 42. Rb8 {[%clk 0:00:39]}  Rc4 {[%clk 0:00:28]} 43. Rb5+ {[%clk 0:00:38]}  Kg6 {[%clk 0:00:28]} 44. Rb6 {[%clk 0:00:38]}  Rf4 {[%clk 0:00:21]} 45. Rb8 {[%clk 0:00:36]} 1/2-1/2


[Site "https://www.chess.com"]

[Event "Titled Tuesday Blitz November 07 Early 2023"]
[White "Witty_Alien"]
[Black "Chinguun, Sumiya"]
[BlackFideId "4902572"]
[WhiteElo "2252"]
[BlackElo "2669"]
[Result "0-1"]
[Round "2"]
[TimeControl "180+1"]
[Date "2023.11.07"]
[WhiteClock "0:01:17"]
[BlackClock "0:02:27"]
[Board "112"]

1. e4 {[%clk 0:03:00]}  c5 {[%clk 0:02:59]} 2. Nf3 {[%clk 0:03:00]}  g6 {[%clk 0:02:57]} 3. h4 {[%clk 0:03:00]}  h5 {[%clk 0:02:54]} 4. d4 {[%clk 0:03:00]}  cxd4 {[%clk 0:02:54]} 5. c3 {[%clk 0:03:01]}  d3 {[%clk 0:02:53]} 6. Bxd3 {[%clk 0:03:01]}  Nc6 {[%clk 0:02:52]} 7. Rh3 {[%clk 0:02:51]}  d6 {[%clk 0:02:51]} 8. Rg3 {[%clk 0:02:51]}  Nf6 {[%clk 0:02:50]} 9. e5 {[%clk 0:02:45]}  dxe5 {[%clk 0:02:42]} 10. Rxg6 {[%clk 0:02:11]}  e4 {[%clk 0:02:33]} 11. Rxf6 {[%clk 0:02:07]}  exf6 {[%clk 0:02:32]} 12. Qe2 {[%clk 0:02:07]}  Qxd3 {[%clk 0:02:31]} 13. Nd4 {[%clk 0:01:17]}  Nxd4 {[%clk 0:02:29]} 14. cxd4 {[%clk 0:01:18]}  Bb4+ {[%clk 0:02:27]} 15. Bd2 {[%clk 0:01:17]}  Bxd2+ {[%clk 0:02:27]} 16. Nxd2 {[%clk 0:01:17]}  Qxe2+ {[%clk 0:02:27]} 0-1


[Site "https://www.chess.com"]